fUSD/lending_fUSD_20240801
["ID","MTS","AMOUNT","RATE_DAILY","PERIOD"]
[333797249,1722519032359,-503.022718,0.00010989,2]
[333797251,1722519032371,-6099.28350179,0.00010989,2]
[333797253,1722519032382,-2669.37803247,0.00010989,2]
[333797256,1722519032401,-587.636628,0.00010989,2]
[333797258,1722519032412,-1646.01780403,0.00010989,2]
[333797261,1722519032423,-441.2547861,0.00010989,2]
[333797264,1722519032445,-156058.44739928,0.00010989,2]
[333797266,1722519032455,-2226.9141499,0.00010997,2]
[333797268,1722519032465,-420.0,0.00010999,2]
[333797270,1722519032475,-540.27889785,0.00011,2]
[333797272,1722519032484,-2014.53214111,0.00011,2]
[333797274,1722519032494,-734.85368627,0.00011,2]
[333797276,1722519032504,-392638.8599579,0.00011,2]
[333797279,1722519032520,-450.0,0.00011,2]
[333797281,1722519032531,-6318.91836194,0.00011,2]
[333797283,1722519032542,-300.0,0.00011,2]
[333797829,1722519038238,-4905.20168239,0.00011,2]
[333797832,1722519038251,-483.7355491,0.00011,2]
[333797834,1722519038263,-401.05803429,0.00011,2]
[333797836,1722519038275,-325.877145,0.00011,2]
[333797838,1722519038287,-256.455,0.00011,2]
[333797840,1722519038301,-325979.86148149,0.00011,2]
[333797993,1722519039901,-283.71,0.00011,2]
[333798003,1722519039986,-1015.75187423,0.00011,2]
[333798005,1722519039999,-5814.69499965,0.00011,2]
[333798007,1722519040011,-3094.16293897,0.00011,2]
[333798009,1722519040022,-11091.14206138,0.00011,2]
[333798323,1722519042984,-760.21,0.00011,2]
[333798325,1722519042995,-409972.92323165,0.00011,2]
[333798328,1722519043008,-427.149998,0.00011,2]
[333798330,1722519043019,-1502.81579274,0.00011,2]
[333798332,1722519043032,-547.46957672,0.00011,2]
[333798334,1722519043044,-44042.92325754,0.00011,2]
[333798337,1722519043057,-1202.82442801,0.00011,2]
[333798339,1722519043068,-1713.50178621,0.00011,2]
[333798341,1722519043080,-623.25,0.00011,2]
[333798343,1722519043091,-1700.6,0.00011,2]
[333798345,1722519043102,-3936.49996495,0.00011,2]
[333798347,1722519043112,-250.0,0.00011,2]
[333798349,1722519043121,-1000.0,0.00011004,2]
[333798350,1722519043131,-602.37805815,0.00011005,2]
[333798351,1722519043142,-336.84091214,0.00011005,2]
[333798352,1722519043158,-316.21478498,0.00011005,2]
[333798353,1722519043188,-1220.00000001,0.00011005,2]
[333798354,1722519043200,-1250.8271609,0.00011005,2]
[333798356,1722519043212,-7428.60756,0.00011005,2]
[333798359,1722519043223,-827.19049739,0.00011005,2]
[333798361,1722519043235,-3493.38342643,0.00011005,2]
[333798363,1722519043244,-1104.1417,0.00011005,2]
[333798365,1722519043254,-13543.6888,0.00011005,2]
[333798367,1722519043263,-4808.2539,0.00011005,2]
[333798369,1722519043273,-5291.13103222,0.00011021,2]
[333798371,1722519043282,-200.0,0.00011045,2]
[333798373,1722519043291,-200.0,0.0001105,2]
[333798375,1722519043302,-5800.0,0.00011054,2]
[333798377,1722519043312,-200.0,0.00011058,2]
[333798379,1722519043321,-5800.0,0.00011063,2]
[333798381,1722519043331,-5800.0,0.00011071,2]
[333798384,1722519043341,-5800.0,0.0001108,2]
[333798387,1722519043351,-5800.0,0.00011088,2]
[333798389,1722519043360,-5800.0,0.00011097,2]
[333798393,1722519043370,-18554.0,0.00011104,2]
[333798395,1722519043380,-35000.0,0.00011105,2]
[333798397,1722519043390,-2256.58907167,0.00011105,2]
[333798400,1722519043399,-284.96139182,0.00011105,2]
[333798402,1722519043409,-1274.29800748,0.00011105,2]
[333798405,1722519043419,-155.0,0.00011105,2]
[333798407,1722519043429,-453.1769076,0.00011105,2]
[333798409,1722519043441,-930.32433831,0.00011105,2]
[333798411,1722519043451,-2184.15917998,0.00011105,2]
[333798413,1722519043460,-507.17312241,0.00011105,2]
[333798415,1722519043469,-1849.80775329,0.00011105,2]
[333798417,1722519043479,-155.0,0.00011105,2]
[333798419,1722519043489,-20200.00000006,0.00011105,2]
[333798421,1722519043499,-155.0,0.00011105,2]
[333798423,1722519043510,-689.12098449,0.00011105,2]
[333798425,1722519043519,-466.42309066,0.00011105,2]
[333798427,1722519043528,-160.29965052,0.00011105,2]
[333798429,1722519043538,-158.10285028,0.00011105,2]
[333798431,1722519043547,-2696.06634568,0.00011105,2]
[333798433,1722519043557,-1317.30265647,0.00011105,2]
[333798435,1722519043567,-476.4573429,0.00011105,2]
[333798437,1722519043578,-439.64535601,0.00011105,2]
[333798439,1722519043588,-3113.17448366,0.00011105,2]
[333798441,1722519043598,-315.2321836,0.00011105,2]
[333798444,1722519043608,-404.69820532,0.00011105,2]
[333798446,1722519043618,-155.0,0.00011105,2]
[333798448,1722519043628,-258.77275636,0.00011105,2]
[333798450,1722519043640,-363.80421493,0.00011105,2]
[333798452,1722519043649,-194.79577607,0.00011105,2]
[333798454,1722519043659,-572.63862719,0.00011105,2]
[333798456,1722519043670,-155.54759998,0.00011105,2]
[333798458,1722519043680,-257.65127436,0.00011105,2]
[333798461,1722519043696,-210.29402487,0.00011105,2]
[333798463,1722519043706,-155.0,0.00011105,2]
[333798465,1722519043715,-179.80836061,0.00011105,2]
[333798467,1722519043726,-155.0,0.00011105,2]
[333798469,1722519043737,-390.0360721,0.00011105,2]
[333798471,1722519043749,-4698.15166856,0.00011105,2]
[333798473,1722519043758,-202.68830391,0.00011105,2]
[333798476,1722519043768,-155.0,0.00011105,2]
[333798478,1722519043778,-155.0,0.00011105,2]
[333798480,1722519043787,-290.9285873,0.00011105,2]
[333798482,1722519043797,-306.04201098,0.00011105,2]
[333798484,1722519043806,-508.97300913,0.00011105,2]
[333798486,1722519043816,-155.0,0.00011105,2]
[333798488,1722519043825,-1073.58046777,0.00011105,2]
[333798490,1722519043835,-155.0,0.00011105,2]
[333798492,1722519043847,-1246.07199876,0.00011105,2]
[333798494,1722519043856,-155.0,0.00011105,2]
[333798496,1722519043866,-308.97616233,0.00011105,2]
[333798498,1722519043876,-394.87520171,0.00011105,2]
[333798500,1722519043886,-155.0,0.00011105,2]
[333798502,1722519043896,-347.32373286,0.00011105,2]
[333798504,1722519043906,-155.0,0.00011105,2]
[333798506,1722519043916,-1500.0,0.00011105,2]
[333798508,1722519043926,-570.41403695,0.00011105,2]
[333798510,1722519043939,-10361.91687652,0.00011105,2]
[333798512,1722519043952,-729.28704669,0.00011105,2]
[333798514,1722519043963,-400.0,0.00011105,2]
[333798516,1722519043973,-15467.9621784,0.00011105,2]
[333798518,1722519043983,-155.0,0.00011105,2]
[333798520,1722519043994,-1205.38483666,0.00011105,2]
[333798522,1722519044003,-1387.10805493,0.00011105,2]
[333798524,1722519044012,-164.9628186,0.00011105,2]
[333798526,1722519044022,-155.0,0.00011105,2]
[333798528,1722519044034,-2143.78276528,0.00011105,2]
[333798530,1722519044044,-155.0,0.00011105,2]
[333798532,1722519044054,-213.41904951,0.00011105,2]
[333798534,1722519044063,-8584.4102063,0.00011105,2]
[333798536,1722519044073,-155.0,0.00011105,2]
[333798538,1722519044083,-3079.05538157,0.00011105,2]
[333798540,1722519044093,-6527.67516204,0.00011105,2]
[333798542,1722519044102,-229.77775296,0.00011105,2]
[333798544,1722519044111,-600.14164396,0.00011105,2]
[333798546,1722519044121,-155.0,0.00011105,2]
[333798548,1722519044131,-155.0,0.00011105,2]
[333798550,1722519044140,-367.51291896,0.00011105,2]
[333798553,1722519044150,-685.40282976,0.00011105,2]
[333798555,1722519044160,-155.28318094,0.00011105,2]
[333798557,1722519044169,-155.0,0.00011105,2]
[333798559,1722519044178,-3117.7279925,0.00011105,2]
[333798561,1722519044191,-670.54602584,0.00011105,2]
[333798563,1722519044201,-155.0,0.00011105,2]
[333798565,1722519044212,-278.16880914,0.00011105,2]
[333798567,1722519044222,-155.0,0.00011105,2]
[333798569,1722519044231,-1253.33884969,0.00011105,2]
[333798571,1722519044240,-454.12693481,0.00011105,2]
[333798573,1722519044249,-162.55720152,0.00011105,2]
[333798575,1722519044258,-531.73631271,0.00011105,2]
[333798577,1722519044268,-201.88026028,0.00011105,2]
[333798579,1722519044277,-5800.0,0.00011105,2]
[333798581,1722519044286,-155.0,0.00011105,2]
[333798583,1722519044296,-23062.20523603,0.00011105,2]
[333798585,1722519044306,-155.0,0.00011105,2]
[333798587,1722519044316,-4790.36180023,0.00011105,2]
[333798589,1722519044325,-315.18749734,0.00011105,2]
[333798591,1722519044335,-155.0,0.00011105,2]
[333798593,1722519044344,-528.40182091,0.00011105,2]
[333798595,1722519044354,-400.85725149,0.00011105,2]
[333798597,1722519044364,-2411.28271492,0.00011105,2]
[333798599,1722519044373,-453.75971967,0.00011105,2]
[333798601,1722519044382,-19684.01929505,0.00011105,2]
[333798603,1722519044392,-7269.27662273,0.0001116,2]
[333798605,1722519044401,-35692.14335282,0.00011185,2]
[333798607,1722519044411,-3975.93139247,0.00011186,2]
[333798609,1722519044420,-155.0,0.00011206,2]
[333798611,1722519044429,-1919.95925052,0.00011221,2]
[333798613,1722519044440,-500.0,0.00011316,2]
[333798615,1722519044450,-719.24573666,0.00011322,2]
[333798617,1722519044459,-183.37476201,0.00011324,2]
[333798619,1722519044468,-165.34169392,0.00011324,2]
[333798621,1722519044478,-500.0,0.00011325,2]
[333798623,1722519044487,-500.0,0.00011333,2]
[333798625,1722519044498,-500.0,0.00011342,2]
[333798627,1722519044507,-500.0,0.00011351,2]
[333798629,1722519044517,-500.0,0.0001136,2]
[333798631,1722519044526,-500.0,0.00011369,2]
[333798633,1722519044536,-500.0,0.00011377,2]
[333798635,1722519044545,-365.36537875,0.00011384,2]
[333798637,1722519044555,-191.21788968,0.00011384,2]
[333798639,1722519044565,-160.57401724,0.00011384,2]
[333798641,1722519044574,-500.0,0.00011386,2]
[333798643,1722519044583,-321.91,0.0001139,2]
[333798645,1722519044592,-1255.0,0.0001139,2]
[333798647,1722519044601,-5825.0,0.0001139,2]
[333798649,1722519044610,-768.296,0.0001139,2]
[333798651,1722519044620,-13.39002668,0.0001139,2]
[333798876,1722519047236,-136.88297332,0.0001139,2]
[333798878,1722519047247,-227.20705658,0.0001139,2]
[333798880,1722519047259,-230.41194342,0.0001139,2]
[333798882,1722519047268,-202.521,0.0001139,2]
[333798884,1722519047278,-232.61999043,0.0001139,2]
[333798887,1722519047293,-568.57253198,0.0001139,2]
[333798895,1722519047413,-1123.80747759,0.0001139,2]
[333798896,1722519047423,-1310.956,0.0001139,2]
[333798897,1722519047432,-1201.0,0.0001139,2]
[333798898,1722519047443,-445.0,0.0001139,2]
[333798899,1722519047453,-500.0,0.00011395,2]
[333798900,1722519047462,-500.0,0.00011404,2]
[333798901,1722519047471,-500.0,0.00011413,2]
[333798902,1722519047481,-500.0,0.00011421,2]
[333798903,1722519047491,-500.0,0.0001143,2]
[333798904,1722519047500,-500.0,0.00011439,2]
[333798905,1722519047510,-500.0,0.00011448,2]
[333798906,1722519047519,-500.0,0.00011457,2]
[333798907,1722519047529,-500.0,0.00011465,2]
[333798908,1722519047540,-500.0,0.00011474,2]
[333798909,1722519047550,-200.0,0.00011525,2]
[333798910,1722519047559,-247.37395801,0.00011525,2]
[333798911,1722519047568,-200.0,0.00011525,2]
[333798912,1722519047578,-247.37395801,0.00011525,2]
[333798913,1722519047587,-155.0,0.00011525,2]
[333798914,1722519047597,-1919.95925052,0.00011538,2]
[333798915,1722519047607,-179.92,0.00011647,2]
[333798916,1722519047616,-150.0,0.00011688,2]
[333798917,1722519047626,-700.0,0.0001174,2]
[333798918,1722519047636,-700.0,0.0001174,2]
[333798919,1722519047645,-150.55,0.00011796,2]
[333798920,1722519047655,-1000.0,0.00011848,2]
[333798921,1722519047664,-1919.95925052,0.00011854,2]
[333798922,1722519047673,-155.0,0.00011896,2]
[333798923,1722519047683,-295.67543974,0.00011896,2]
[333798924,1722519047693,-155.0,0.00011896,2]
[333798925,1722519047702,-2000.0,0.000119,2]
[333798926,1722519047711,-2900.0,0.000119,4]
[333798927,1722519047720,-155.0,0.00011959,2]
[333798928,1722519047729,-377.98060402,0.00011959,2]
[333798929,1722519047739,-155.0,0.00011959,2]
[333798930,1722519047748,-205.60886598,0.00011959,2]
[333798931,1722519047759,-182.59781326,0.00011959,2]
[333798932,1722519047768,-155.0,0.00012,2]
[333798933,1722519047779,-500.0,0.00012014,2]
[333798934,1722519047788,-340.38,0.00012033,2]
[333798935,1722519047797,-587.0,0.00012099,2]
[333798936,1722519047808,-1919.95925052,0.00012171,2]
[333798937,1722519047818,-152.98717,0.00012305,2]
[333798938,1722519047828,-180.50540453,0.0001236,2]
[333798939,1722519047838,-304.88049393,0.0001236,2]
[333798940,1722519047847,-224.76127133,0.00012391,2]
[333798941,1722519047857,-155.0,0.00012391,2]
[333798942,1722519047866,-155.0,0.00012391,2]
[333798943,1722519047875,-155.0,0.00012391,2]
[333798944,1722519047885,-155.0,0.00012397,2]
[333798945,1722519047894,-419.75411239,0.00012397,2]
[333798946,1722519047904,-500.0,0.000124,2]
[333798947,1722519047913,-1000.0,0.000124,2]
[333798948,1722519047923,-500.0,0.000124,2]
[333798949,1722519047932,-200.0,0.000124,2]
[333798950,1722519047942,-400.0,0.00012415,2]
[333798951,1722519047951,-400.0,0.0001242,2]
[333798952,1722519047965,-400.0,0.00012428,2]
[333798954,1722519047976,-340.38,0.00012458,2]
[333798956,1722519047985,-2000.0,0.00012459,2]
[333798958,1722519047995,-179.66937592,0.00012459,2]
[333798960,1722519048005,-500.0,0.00012459,2]
[333798962,1722519048014,-400.0,0.00012459,2]
[333798964,1722519048023,-500.0,0.00012459,2]
[333798966,1722519048035,-268.25978044,0.00012459,2]
[333798967,1722519048044,-500.0,0.00012459,2]
[333798969,1722519048053,-500.0,0.00012459,2]
[333798971,1722519048063,-500.0,0.00012459,2]
[333798973,1722519048072,-500.0,0.00012459,2]
[333798975,1722519048082,-500.0,0.00012459,2]
[333798977,1722519048092,-500.0,0.00012459,2]
[333798979,1722519048102,-500.0,0.00012459,2]
[333798981,1722519048112,-222029.01154082,0.0001246,2]
[333799444,1722519071790,154.93807693,0.00027,120]
[333799445,1722519123618,3000.0,0.00027,120]
[333799446,1722519193523,1000.0,0.00024932,120]
[333799448,1722519476718,-150.0,0.000133,30]
[333799449,1722519516228,846.14,0.00025,60]
[333799468,1722520232121,-329.14260328,8.486e-05,2]
[333799469,1722520232154,-415.67739672,8.486e-05,2]
[333799470,1722520232164,-1250.0,0.0001,2]
[333799471,1722520232174,-180.97019923,0.0001,2]
[333799472,1722520232183,-250.0,0.00010092,2]
[333799473,1722520232194,-180.9701992,0.00010122,2]
[333799474,1722520232205,-1000.0,0.00010127,2]
[333799475,1722520232216,-300.0,0.00010266,2]
[333799476,1722520232225,-111.62565231,0.00010266,2]
[333799477,1722520232265,-68.37434769,0.00010266,2]
[333799478,1722520232275,-23180.91,0.00010267,2]
[333799479,1722520232285,-179.93,0.00010269,2]
[333799480,1722520232295,-200.0,0.00010285,2]
[333799481,1722520232305,-180.9701992,0.00010345,2]
[333799482,1722520232315,-180.9701992,0.00010567,2]
[333799483,1722520232324,-158.93,0.00010636,2]
[333799484,1722520232335,-744.82,0.0001075,2]
[333799485,1722520232348,-150.0,0.00010767,2]
[333799486,1722520232358,-150.99,0.00010767,2]
[333799487,1722520232366,-2918.32,0.00010767,2]
[333799488,1722520232376,-421.25,0.00010767,2]
[333799489,1722520232386,-299.99,0.00010767,2]
[333799490,1722520232396,-180.9701992,0.00010789,2]
[333799491,1722520232405,-658.4187,0.00010789,2]
[333799492,1722520232415,-628.3931,0.00010789,2]
[333799493,1722520232429,-499.99,0.00010825,2]
[333799494,1722520232440,-615.15,0.00010888,2]
[333799495,1722520232451,-150.0,0.00010888,2]
[333799496,1722520232460,-12967.3785,0.00010889,2]
[333799497,1722520232470,-449.0068,0.00010889,2]
[333799498,1722520232482,-28293.0706,0.00010889,2]
[333799499,1722520232491,-933.644,0.00010889,2]
[333799501,1722520232500,-55793.6888,0.00010889,2]
[333799503,1722520232510,-11909.8311,0.00010889,2]
[333799505,1722520232519,-7830.25,0.00010889,2]
[333799507,1722520232529,-959.97962526,0.00010899,2]
[333799509,1722520232538,-169.86939259,0.00010899,2]
[333799511,1722520232548,-2328.0836,0.000109,2]
[333799513,1722520232557,-500.0,0.00010918,2]
[333799515,1722520232567,-500.0,0.00010918,2]
[333799517,1722520232576,-600.0,0.00010918,2]
[333799519,1722520232586,-150.0,0.00010959,2]
[333799521,1722520232595,-8075.0,0.00010959,2]
[333799523,1722520232605,-250.0,0.00010959,2]
[333799525,1722520232615,-155.0,0.00011105,2]
[333799527,1722520232625,-205.60886598,0.00011105,2]
[333799529,1722520232635,-155.0,0.00011105,2]
[333799531,1722520232644,-155.0,0.00011105,2]
[333799533,1722520232654,-300.0,0.00011136,2]
[333799535,1722520232663,-35692.14335282,0.00011186,2]
[333799537,1722520232672,-25298.4632004,0.00011186,2]
[333799539,1722520232683,-4790.36180023,0.00011186,2]
[333799541,1722520232695,-155.0,0.00011186,2]
[333799543,1722520232705,-3816.50869709,0.00011206,2]
[333799545,1722520232714,-3975.93139247,0.00011321,2]
[333799547,1722520232724,-1500.0,0.00011322,2]
[333799549,1722520232733,-1000.0,0.00011393,2]
[333799551,1722520232743,-231.82,0.00011412,2]
[333799553,1722520232752,-279.0,0.00011536,2]
[333799555,1722520232761,-450.0,0.00011536,2]
[333799557,1722520232771,-249.0,0.00011536,2]
[333799559,1722520232780,-202.521,0.00011536,2]
[333799561,1722520232789,-169.86939256,0.00011574,2]
[333799562,1722520232799,-959.97962526,0.00011588,2]
[333799564,1722520232808,-600.0,0.0001174,2]
[333799566,1722520232818,-500.0,0.0001185,2]
[333799568,1722520232827,-500.0,0.0001185,2]
[333799571,1722520232839,-3117.7279925,0.00011896,2]
[333799573,1722520232848,-4472.47771748,0.00011896,2]
[333799575,1722520232857,-205.40364118,0.00011896,2]
[333799577,1722520232867,-2000.0,0.000119,2]
[333799579,1722520232876,-300.0,0.00011942,2]
[333799581,1722520232885,-700.0,0.00012014,2]
[333799582,1722520232894,-243.12,0.00012033,2]
[333799584,1722520232904,-287.52963541,0.00012055,2]
[333799586,1722520232914,-500.0,0.00012124,2]
[333799588,1722520232923,-419.90121071,0.00012159,2]
[333799589,1722520232933,-800.0,0.000122,4]
[333799590,1722520232943,-150.0,0.00012286,2]
[333799591,1722520232952,-387.79038477,0.000123,2]
[333799592,1722520232961,-1600.0,0.000123,4]
[333799593,1722520232971,-169.86939256,0.0001235,2]
[333799594,1722520232981,-2933.6704,0.0001236,2]
[333799595,1722520232990,-161.53447551,0.0001236,2]
[333799596,1722520232999,-3400.91875942,0.0001236,2]
[333799597,1722520233354,-959.97962526,0.00012377,2]
[333799598,1722520233400,-1000.0,0.00012387,2]
[333799599,1722520233410,-500.0,0.00012387,2]
[333799600,1722520233423,-200.0,0.00012387,2]
[333799601,1722520233433,-1404.6505661,0.00012391,2]
[333799602,1722520233444,-2500.0,0.000124,4]
[333799603,1722520233455,-243.12,0.00012458,2]
[333799604,1722520233464,-300.0,0.00012459,2]
[333799605,1722520233474,-301711.32350893,0.0001246,2]
[333799606,1722520233488,-13111.38324138,0.0001246,2]
[333799607,1722520233513,-681.97397023,0.0001246,2]
[333799608,1722520233525,-4782.84240991,0.0001246,2]
[333799609,1722520233541,-4235.04792031,0.0001246,2]
[333799610,1722520233552,-424.54627044,0.0001246,2]
[333799611,1722520233564,-2568.54606241,0.0001246,2]
[333799612,1722520233582,-2623.158139,0.0001246,2]
[333799620,1722520238094,-200.0,0.000109,2]
[333799622,1722520238104,-400.0,0.0001227,2]
[333799624,1722520238114,-1404.6505661,0.0001236,2]
[333799625,1722520238123,-9906.59153204,0.0001246,2]
[333799626,1722520238165,-6628.30439943,0.0001246,2]
[333799627,1722520238178,-358.33485164,0.0001246,2]
[333799629,1722520238190,-1178.618413,0.0001246,2]
[333799630,1722520238205,-2291.38994815,0.0001246,2]
[333799631,1722520238217,-10469.5586835,0.0001246,2]
[333799632,1722520238276,-282.04696975,0.0001246,2]
[333799633,1722520238288,-566.76354058,0.0001246,2]
[333799634,1722520238300,-628.66127068,0.0001246,2]
[333799635,1722520238312,-3943.05169461,0.0001246,2]
[333799636,1722520238334,-914.0500234,0.0001246,2]
[333799637,1722520238348,-2166.78342138,0.0001246,2]
[333799638,1722520238365,-6293.29673536,0.0001246,2]
[333799639,1722520240263,-3512.67903515,0.0001246,2]
[333799640,1722520240275,-2310.06028183,0.0001246,2]
[333799641,1722520242581,-1645.08292804,0.0001246,2]
[333799642,1722520242593,-2073.715,0.0001246,2]
[333799643,1722520242604,-2875.82477649,0.0001246,2]
[333799644,1722520242616,-843.4,0.0001246,2]
[333799645,1722520242628,-337.94,0.0001246,2]
[333799646,1722520242647,-264.18399518,0.0001246,2]
[333799647,1722520242659,-11294.43750437,0.0001246,2]
[333799648,1722520242670,-3249.95340702,0.0001246,2]
[333799649,1722520242686,-11047.60140179,0.0001246,2]
[333799650,1722520242699,-969.65529697,0.0001246,2]
[333799651,1722520242711,-417.81286233,0.0001246,2]
[333799652,1722520242723,-3281.9,0.0001246,2]
[333799658,1722520243114,-614.29174979,0.0001246,2]
[333799660,1722520243255,-2080.68,0.0001246,2]
[333799661,1722520243268,-955.62140526,0.0001246,2]
[333799662,1722520243280,-2724.565046,0.0001246,2]
[333799663,1722520243292,-3972.09929284,0.0001246,2]
[333799664,1722520243382,-711.82512358,0.0001246,2]
[333799665,1722520243395,-1597.27755166,0.0001246,2]
[333799666,1722520243420,-926.68056112,0.0001246,2]
[333799944,1722520246304,-859.59283247,0.0001185,2]
[333799946,1722520246316,-509.50448308,0.0001185,2]
[333799948,1722520246327,-343.25157186,0.0001185,2]
[333799951,1722520246340,-1405.37910509,0.0001185,2]
[333799953,1722520246350,-216.50560576,0.00012397,2]
[333799963,1722520246443,-502.7401309,0.00012397,2]
[333799965,1722520246455,-1399.5792129,0.0001246,2]
[333799967,1722520246466,-335.451,0.0001246,2]
[333799975,1722520246578,-39334.93647576,0.0001246,2]
[333799977,1722520246588,-150.0,0.0001246,2]
[333799979,1722520246597,-3000.0,0.0001246,2]
[333799981,1722520246607,-3300.0,0.000125,4]
[333799983,1722520246616,-161.53447551,0.0001254,2]
[333799985,1722520246625,-300.0,0.00012543,2]
[333799987,1722520246634,-500.0,0.00012562,2]
[333799989,1722520246644,-500.0,0.00012562,2]
[333799991,1722520246654,-600.0,0.00012562,2]
[333799993,1722520246664,-274.59061616,0.00012581,2]
[333799995,1722520246675,-1175.68290634,0.00012581,2]
[333799997,1722520246684,-300.0,0.00012591,2]
[333799998,1722520246694,-4200.0,0.000126,4]
[333799999,1722520246705,-298.34472477,0.00012613,2]
[333800000,1722520246715,-300.0,0.00012623,2]
[333800001,1722520246725,-1000.0,0.00012659,2]
[333800002,1722520246735,-953.33498772,0.00012665,2]
[333800003,1722520246746,-1274.29800748,0.00012665,2]
[333800004,1722520246756,-728.31039017,0.00012665,2]
[333800005,1722520246766,-686.31468402,0.00012665,2]
[333800006,1722520246775,-686.31468402,0.00012666,2]
[333800007,1722520246786,-1073.58046777,0.00012666,2]
[333800008,1722520246796,-484.69898026,0.00012666,2]
[333800009,1722520246805,-304.88049393,0.00012666,2]
[333800010,1722520246815,-155.0,0.00012666,2]
[333800011,1722520246824,-155.0,0.00012666,2]
[333800012,1722520246834,-188.60979296,0.00012666,2]
[333800013,1722520246844,-155.0,0.00012666,2]
[333800014,1722520246854,-531.73631271,0.00012666,2]
[333800015,1722520246863,-476.4573429,0.00012681,2]
[333800016,1722520246873,-531.73631271,0.00012681,2]
[333800017,1722520246882,-377.98060402,0.00012681,2]
[333800018,1722520246892,-439.64535601,0.00012681,2]
[333800019,1722520246902,-155.18124225,0.00012681,2]
[333800020,1722520246911,-240.67891427,0.00012681,2]
[333800021,1722520246922,-155.0,0.00012681,2]
[333800022,1722520246932,-247.37395801,0.00012681,2]
[333800023,1722520246941,-357.09487431,0.00012681,2]
[333800024,1722520246951,-165.34169392,0.00012681,2]
[333800025,1722520246961,-155.0,0.00012681,2]
[333800026,1722520246970,-155.0,0.00012681,2]
[333800027,1722520246979,-357.09487431,0.00012681,2]
[333800028,1722520246989,-155.0,0.00012681,2]
[333800029,1722520246998,-155.0,0.00012681,2]
[333800030,1722520247007,-248.22757557,0.00012681,2]
[333800031,1722520247017,-205.72998009,0.0001269,2]
[333800032,1722520247027,-155.0,0.0001269,2]
[333800033,1722520247036,-359.03203292,0.0001269,2]
[333800034,1722520247046,-155.0,0.0001269,2]
[333800035,1722520247055,-155.0,0.0001269,2]
[333800036,1722520247065,-155.0,0.0001269,2]
[333800037,1722520247075,-164.21268611,0.0001269,2]
[333800038,1722520247084,-155.0,0.0001269,2]
[333800039,1722520247093,-155.0,0.00012696,2]
[333800040,1722520247103,-155.0,0.00012696,2]
[333800041,1722520247112,-203.20879356,0.00012696,2]
[333800042,1722520247122,-155.0,0.00012696,2]
[333800043,1722520247132,-202.68830391,0.00012696,2]
[333800044,1722520247142,-155.0,0.00012696,2]
[333800045,1722520247152,-800.0,0.000127,4]
[333800046,1722520247161,-300.0,0.00012713,2]
[333800047,1722520247171,-161.53447551,0.0001272,2]
[333800048,1722520247180,-155.0,0.00012749,2]
[333800049,1722520247190,-297.18571325,0.00012749,2]
[333800050,1722520247200,-363.80421493,0.00012749,2]
[333800051,1722520247210,-155.0,0.00012749,2]
[333800052,1722520247219,-628.0054999,0.00012749,2]
[333800053,1722520247229,-297.18571325,0.00012749,2]
[333800054,1722520247238,-243.00643023,0.00012749,2]
[333800055,1722520247248,-233.34379876,0.00012771,5]
[333800056,1722520247258,-1085.30157508,0.00012789,2]
[333800057,1722520247267,-11313.05498942,0.000128,2]
[333800058,1722520247276,-800.0,0.000128,4]
[333800059,1722520247287,-155.0,0.00012818,2]
[333800060,1722520247296,-419.75411239,0.00012818,2]
[333800061,1722520247305,-155.0,0.00012818,2]
[333800062,1722520247315,-155.0,0.00012818,2]
[333800063,1722520247325,-365.36537875,0.00012818,2]
[333800064,1722520247335,-155.28318094,0.00012826,2]
[333800065,1722520247347,-155.0,0.00012826,2]
[333800066,1722520247359,-179.93,0.00012836,2]